[Event "Titled Tuesday Blitz February 07 Late 2023"]
[White "Nasuta, Grzegorz"]
[Black "Brilej, Jaka"]
[WhiteFideId "1141686"]
[BlackFideId "14618818"]
[WhiteElo "2552"]
[BlackElo "2321"]
[Result "1-0"]
[Round "06"]
[TimeControl "180+2"]
[Date "2023.02.07"]
[WhiteClock "0:00:43"]
[BlackClock "0:00:14"]

1. e4 {[%clk 0:03:00]}  d6 {[%clk 0:02:51]} 2. d4 {[%clk 0:03:00]}  Nf6 {[%clk 0:02:50]} 3. Nc3 {[%clk 0:03:01]}  g6 {[%clk 0:02:49]} 4. Nf3 {[%clk 0:03:00]}  Bg7 {[%clk 0:02:49]} 5. Be3 {[%clk 0:03:01]}  c6 {[%clk 0:02:29]} 6. Qd2 {[%clk 0:02:59]}  Ng4 {[%clk 0:02:25]} 7. Bg5 {[%clk 0:02:58]}  h6 {[%clk 0:02:24]} 8. Bh4 {[%clk 0:02:58]}  b5 {[%clk 0:02:24]} 9. h3 {[%clk 0:02:58]}  Nf6 {[%clk 0:02:23]} 10. Bd3 {[%clk 0:02:58]}  b4 {[%clk 0:02:19]} 11. Ne2 {[%clk 0:02:57]}  a5 {[%clk 0:02:19]} 12. O-O-O {[%clk 0:02:52]}  Ba6 {[%clk 0:02:14]} 13. e5 {[%clk 0:02:34]}  Nd5 {[%clk 0:02:07]} 14. e6 {[%clk 0:02:28]}  f5 {[%clk 0:02:05]} 15. g4 {[%clk 0:02:25]}  Bxd3 {[%clk 0:02:00]} 16. Qxd3 {[%clk 0:02:25]}  O-O {[%clk 0:01:25]} 17. gxf5 {[%clk 0:02:17]}  Rxf5 {[%clk 0:01:25]} 18. Rhg1 {[%clk 0:02:16]}  Qe8 {[%clk 0:01:25]} 19. Rg3 {[%clk 0:01:56]}  Qf8 {[%clk 0:00:41]} 20. Rdg1 {[%clk 0:01:55]}  g5 {[%clk 0:00:40]} 21. Bxg5 {[%clk 0:01:21]}  hxg5 {[%clk 0:00:38]} 22. Nxg5 {[%clk 0:01:21]}  b3 {[%clk 0:00:29]} 23. a3 {[%clk 0:01:03]}  Bh6 {[%clk 0:00:20]} 24. Kb1 {[%clk 0:00:49]}  bxc2+ {[%clk 0:00:20]} 25. Kxc2 {[%clk 0:00:45]}  Na6 {[%clk 0:00:14]} 26. Nf7+ {[%clk 0:00:43]}  Kh7 {[%clk 0:00:14]} 27. Qxf5# {[%clk 0:00:43]} 1-0


[Site "https://www.chess.com"]

[Event "Titled Tuesday Blitz February 07 Late 2023"]
[White "Zierk, Steven"]
[Black "Golubev, Mikhail"]
[WhiteFideId "2034255"]
[BlackFideId "14100983"]
[WhiteElo "2488"]
[BlackElo "2461"]
[Result "1/2-1/2"]
[Round "06"]
[TimeControl "180+2"]
[Date "2023.02.07"]
[WhiteClock "0:00:45"]
[BlackClock "0:00:04"]

1. e4 {[%clk 0:02:57]}  c5 {[%clk 0:02:59]} 2. Nf3 {[%clk 0:02:56]}  d6 {[%clk 0:02:59]} 3. d4 {[%clk 0:02:57]}  cxd4 {[%clk 0:02:59]} 4. Nxd4 {[%clk 0:02:57]}  Nf6 {[%clk 0:02:59]} 5. Nc3 {[%clk 0:02:58]}  g6 {[%clk 0:02:59]} 6. Be3 {[%clk 0:02:58]}  Bg7 {[%clk 0:03:00]} 7. f3 {[%clk 0:02:59]}  Nc6 {[%clk 0:03:00]} 8. Qd2 {[%clk 0:02:55]}  O-O {[%clk 0:02:59]} 9. O-O-O {[%clk 0:02:55]}  d5 {[%clk 0:02:58]} 10. Qe1 {[%clk 0:02:54]}  e5 {[%clk 0:02:57]} 11. Nxc6 {[%clk 0:02:54]}  bxc6 {[%clk 0:02:58]} 12. exd5 {[%clk 0:02:55]}  Nxd5 {[%clk 0:02:58]} 13. Bc4 {[%clk 0:02:51]}  Be6 {[%clk 0:02:58]} 14. Bc5 {[%clk 0:02:51]}  Qg5+ {[%clk 0:02:45]} 15. Kb1 {[%clk 0:02:44]}  Nxc3+ {[%clk 0:02:37]} 16. Qxc3 {[%clk 0:02:44]}  e4 {[%clk 0:02:33]} 17. Bd4 {[%clk 0:02:32]}  Bxd4 {[%clk 0:02:33]} 18. Qxd4 {[%clk 0:02:31]}  Bxc4 {[%clk 0:02:31]} 19. Qxc4 {[%clk 0:02:31]}  exf3 {[%clk 0:02:18]} 20. gxf3 {[%clk 0:02:30]}  Qf6 {[%clk 0:02:18]} 21. h4 {[%clk 0:02:25]}  h5 {[%clk 0:02:13]} 22. Rdg1 {[%clk 0:02:13]}  Rfb8 {[%clk 0:01:59]} 23. b3 {[%clk 0:02:11]}  a5 {[%clk 0:01:58]} 24. Rg5 {[%clk 0:02:04]}  Rb4 {[%clk 0:01:47]} 25. Qc5 {[%clk 0:01:54]}  Rb5 {[%clk 0:01:44]} 26. Qe3 {[%clk 0:01:51]}  Rxg5 {[%clk 0:01:44]} 27. hxg5 {[%clk 0:01:50]}  Qe6 {[%clk 0:01:27]} 28. Qc3 {[%clk 0:01:46]}  a4 {[%clk 0:01:20]} 29. Re1 {[%clk 0:01:42]}  Qd5 {[%clk 0:01:20]} 30. b4 {[%clk 0:01:39]}  a3 {[%clk 0:01:18]} 31. f4 {[%clk 0:01:32]}  Rb8 {[%clk 0:01:05]} 32. Qxa3 {[%clk 0:01:27]}  c5 {[%clk 0:00:55]} 33. b5 {[%clk 0:01:12]}  Qd2 {[%clk 0:00:34]} 34. Re3 {[%clk 0:00:55]}  Rxb5+ {[%clk 0:00:30]} 35. Rb3 {[%clk 0:00:55]}  Rxb3+ {[%clk 0:00:11]} 36. axb3 {[%clk 0:00:54]}  Qd1+ {[%clk 0:00:09]} 37. Kb2 {[%clk 0:00:54]}  Qd4+ {[%clk 0:00:09]} 38. Kb1 {[%clk 0:00:55]}  h4 {[%clk 0:00:09]} 39. Qa8+ {[%clk 0:00:52]}  Kg7 {[%clk 0:00:09]} 40. Qf3 {[%clk 0:00:52]}  Qg1+ {[%clk 0:00:07]} 41. Kb2 {[%clk 0:00:51]}  Qg3 {[%clk 0:00:08]} 42. Qe4 {[%clk 0:00:50]}  h3 {[%clk 0:00:07]} 43. Qe5+ {[%clk 0:00:50]}  Kg8 {[%clk 0:00:07]} 44. Qe8+ {[%clk 0:00:48]}  Kg7 {[%clk 0:00:07]} 45. Qe5+ {[%clk 0:00:49]}  Kg8 {[%clk 0:00:04]} 46. Qe8+ {[%clk 0:00:45]}  Kg7 {[%clk 0:00:04]} 47. Qe5+ {[%clk 0:00:45]} 1/2-1/2


[Site "https://www.chess.com"]

[Event "Titled Tuesday Blitz February 07 Late 2023"]
[White "Aggelis, Nikolaos"]
[Black "Indjic, Aleksandar"]
[WhiteFideId "4213220"]
[BlackFideId "911925"]
[WhiteElo "2270"]
[BlackElo "2618"]
[Result "0-1"]
[Round "06"]
[TimeControl "180+2"]
[Date "2023.02.07"]
[WhiteClock "0:00:51"]
[BlackClock "0:01:46"]

1. d4 {[%clk 0:03:00]}  Nf6 {[%clk 0:02:58]} 2. g3 {[%clk 0:03:01]}  d5 {[%clk 0:02:49]} 3. Bg2 {[%clk 0:03:00]}  c5 {[%clk 0:02:49]} 4. Nf3 {[%clk 0:03:00]}  cxd4 {[%clk 0:02:48]} 5. O-O {[%clk 0:03:01]}  h6 {[%clk 0:02:46]} 6. b3 {[%clk 0:03:00]}  Nbd7 {[%clk 0:02:38]} 7. Qxd4 {[%clk 0:02:55]}  e6 {[%clk 0:02:37]} 8. Bb2 {[%clk 0:02:48]}  Bc5 {[%clk 0:02:36]} 9. Qd2 {[%clk 0:02:44]}  O-O {[%clk 0:02:35]} 10. c4 {[%clk 0:02:41]}  dxc4 {[%clk 0:02:34]} 11. bxc4 {[%clk 0:02:39]}  Qc7 {[%clk 0:02:32]} 12. Nc3 {[%clk 0:02:39]}  a6 {[%clk 0:02:31]} 13. Rac1 {[%clk 0:02:32]}  b6 {[%clk 0:02:29]} 14. Na4 {[%clk 0:02:29]}  Be7 {[%clk 0:02:21]} 15. Ne5 {[%clk 0:01:42]}  Bb7 {[%clk 0:02:09]} 16. Nxd7 {[%clk 0:01:42]}  Nxd7 {[%clk 0:02:07]} 17. Bxb7 {[%clk 0:01:34]}  Qxb7 {[%clk 0:02:08]} 18. Rfd1 {[%clk 0:01:28]}  Rfd8 {[%clk 0:02:07]} 19. Qf4 {[%clk 0:01:26]}  Qc6 {[%clk 0:02:02]} 20. Nc3 {[%clk 0:01:18]}  Nf6 {[%clk 0:01:56]} 21. Rxd8+ {[%clk 0:01:13]}  Rxd8 {[%clk 0:01:57]} 22. Qf3 {[%clk 0:01:09]}  Qxc4 {[%clk 0:01:51]} 23. Qb7 {[%clk 0:00:55]}  Bc5 {[%clk 0:01:48]} 24. Na4 {[%clk 0:00:51]}  Qxa4 {[%clk 0:01:46]} 0-1


[Site "https://www.chess.com"]

[Event "Titled Tuesday Blitz February 07 Late 2023"]
[White "Ozen, Bahadir"]
[Black "Dobrikov, Marco"]
[WhiteFideId "6337058"]
[BlackFideId "12950378"]
[WhiteElo "2369"]
[BlackElo "2269"]
[Result "1-0"]
[Round "06"]
[TimeControl "180+2"]
[Date "2023.02.07"]
[WhiteClock "0:00:04"]
[BlackClock "0:00:09"]

1. g3 {[%clk 0:03:00]}  d5 {[%clk 0:02:58]} 2. Nf3 {[%clk 0:03:00]}  c5 {[%clk 0:02:58]} 3. Bg2 {[%clk 0:03:01]}  Nc6 {[%clk 0:02:58]} 4. d4 {[%clk 0:03:01]}  cxd4 {[%clk 0:02:58]} 5. Nxd4 {[%clk 0:03:01]}  e5 {[%clk 0:02:59]} 6. Nxc6 {[%clk 0:03:02]}  bxc6 {[%clk 0:03:00]} 7. c4 {[%clk 0:03:02]}  Nf6 {[%clk 0:03:00]} 8. O-O {[%clk 0:03:02]}  Be6 {[%clk 0:02:56]} 9. Bg5 {[%clk 0:02:58]}  Be7 {[%clk 0:02:54]} 10. cxd5 {[%clk 0:02:57]}  cxd5 {[%clk 0:02:50]} 11. Qa4+ {[%clk 0:02:54]}  Kf8 {[%clk 0:02:38]} 12. Nc3 {[%clk 0:02:47]}  Rb8 {[%clk 0:02:27]} 13. Bxf6 {[%clk 0:02:43]}  gxf6 {[%clk 0:02:19]} 14. Nxd5 {[%clk 0:02:08]}  Rxb2 {[%clk 0:02:02]} 15. Rad1 {[%clk 0:01:41]}  Bxd5 {[%clk 0:01:48]} 16. Bxd5 {[%clk 0:01:36]}  Qb6 {[%clk 0:01:40]} 17. e3 {[%clk 0:01:15]}  f5 {[%clk 0:01:39]} 18. Qd7 {[%clk 0:01:12]}  Qf6 {[%clk 0:01:32]} 19. Rc1 {[%clk 0:01:05]}  Kg7 {[%clk 0:01:29]} 20. Rc7 {[%clk 0:01:04]}  Rd8 {[%clk 0:01:30]} 21. Qxe7 {[%clk 0:01:00]}  Qxe7 {[%clk 0:01:30]} 22. Rxe7 {[%clk 0:00:59]}  Rxd5 {[%clk 0:01:31]} 23. Rxa7 {[%clk 0:00:59]}  Rdd2 {[%clk 0:01:31]} 24. a4 {[%clk 0:00:54]}  Ra2 {[%clk 0:01:31]} 25. a5 {[%clk 0:00:54]}  f4 {[%clk 0:01:26]} 26. exf4 {[%clk 0:00:54]}  exf4 {[%clk 0:01:27]} 27. gxf4 {[%clk 0:00:54]}  Kg6 {[%clk 0:01:23]} 28. Kg2 {[%clk 0:00:53]}  h5 {[%clk 0:01:21]} 29. h4 {[%clk 0:00:42]}  f6 {[%clk 0:01:21]} 30. Ra8 {[%clk 0:00:37]}  Kf5 {[%clk 0:01:19]} 31. Rh8 {[%clk 0:00:37]}  Kg4 {[%clk 0:01:19]} 32. f5 {[%clk 0:00:16]}  Rxa5 {[%clk 0:01:15]} 33. Rb1 {[%clk 0:00:16]}  Raa2 {[%clk 0:00:58]} 34. Rf1 {[%clk 0:00:16]}  Rac2 {[%clk 0:00:34]} 35. Rh7 {[%clk 0:00:16]}  Rc3 {[%clk 0:00:28]} 36. Rg1 {[%clk 0:00:06]}  Rg3+ {[%clk 0:00:25]} 37. Kh1 {[%clk 0:00:07]}  Rxg1+ {[%clk 0:00:18]} 38. Kxg1 {[%clk 0:00:08]}  Kxh4 {[%clk 0:00:18]} 39. Rh6 {[%clk 0:00:03]}  Kg5 {[%clk 0:00:19]} 40. Rg6+ {[%clk 0:00:03]}  Kxf5 {[%clk 0:00:19]} 41. Rg8 {[%clk 0:00:04]}  Rd3 {[%clk 0:00:17]} 42. Kg2 {[%clk 0:00:04]}  h4 {[%clk 0:00:17]} 43. Rh8 {[%clk 0:00:04]}  Kg4 {[%clk 0:00:18]} 44. Rg8+ {[%clk 0:00:05]}  Kf5 {[%clk 0:00:18]} 45. Rh8 {[%clk 0:00:05]}  Rd4 {[%clk 0:00:19]} 46. Kh3 {[%clk 0:00:05]}  Rf4 {[%clk 0:00:19]} 47. Kg2 {[%clk 0:00:02]}  Ke4 {[%clk 0:00:18]} 48. Re8+ {[%clk 0:00:02]}  Kf5 {[%clk 0:00:16]} 49. Rh8 {[%clk 0:00:03]}  Rg4+ {[%clk 0:00:16]} 50. Kh3 {[%clk 0:00:02]}  Kf4 {[%clk 0:00:17]} 51. Rh5 {[%clk 0:00:02]}  f5 {[%clk 0:00:17]} 52. Rh6 {[%clk 0:00:02]}  Kf3 {[%clk 0:00:18]} 53. Rxh4 {[%clk 0:00:02]}  Rg5 {[%clk 0:00:06]} 54. Kh2 {[%clk 0:00:02]}  Kxf2 {[%clk 0:00:06]} 55. Kh1 {[%clk 0:00:02]}  Rg4 {[%clk 0:00:05]} 56. Rh5 {[%clk 0:00:02]}  f4 {[%clk 0:00:06]} 57. Rh2+ {[%clk 0:00:02]}  Ke3 {[%clk 0:00:06]} 58. Ra2 {[%clk 0:00:03]}  f3 {[%clk 0:00:07]} 59. Ra3+ {[%clk 0:00:04]}  Kf2 {[%clk 0:00:07]} 60. Ra2+ {[%clk 0:00:04]}  Kg3 {[%clk 0:00:08]} 61. Kg1 {[%clk 0:00:05]}  Re4 {[%clk 0:00:08]} 62. Ra1 {[%clk 0:00:05]}  Re2 {[%clk 0:00:08]} 63. Rb1 {[%clk 0:00:04]}  Rh2 {[%clk 0:00:08]} 64. Rb3 {[%clk 0:00:02]}  Rh3 {[%clk 0:00:08]} 65. Ra3 {[%clk 0:00:01]}  Rh8 {[%clk 0:00:08]} 66. Rb3 {[%clk 0:00:02]}  Re8 {[%clk 0:00:08]} 67. Rb1 {[%clk 0:00:02]}  Re2 {[%clk 0:00:08]} 68. Ra1 {[%clk 0:00:02]}  f2+ {[%clk 0:00:08]} 69. Kf1 {[%clk 0:00:03]}  Re3 {[%clk 0:00:08]} 70. Rb1 {[%clk 0:00:03]}  Kf3 {[%clk 0:00:08]} 71. Rb3 {[%clk 0:00:04]}  Kf4 {[%clk 0:00:06]} 72. Rb4+ {[%clk 0:00:03]}  Kg3 {[%clk 0:00:07]} 73. Rb1 {[%clk 0:00:02]}  Rf3 {[%clk 0:00:07]} 74. Ra1 {[%clk 0:00:02]}  Rc3 {[%clk 0:00:07]} 75. Rd1 {[%clk 0:00:03]}  Rd3 {[%clk 0:00:08]} 76. Rxd3+ {[%clk 0:00:03]}  Kf4 {[%clk 0:00:09]} 77. Rd2 {[%clk 0:00:04]} 1-0


[Site "https://www.chess.com"]

[Event "Titled Tuesday Blitz February 07 Late 2023"]
[White "Filgueira, Hernan"]
[Black "Cuenca Jimenez, Jose Fernando"]
[WhiteFideId "101770"]
[BlackFideId "2255570"]
[WhiteElo "2283"]
[BlackElo "2535"]
[Result "1/2-1/2"]
[Round "06"]
[TimeControl "180+2"]
[Date "2023.02.07"]
[WhiteClock "0:00:09"]
[BlackClock "0:00:05"]

1. e4 {[%clk 0:02:59]}  c5 {[%clk 0:02:55]} 2. Nf3 {[%clk 0:02:58]}  Nc6 {[%clk 0:02:55]} 3. Bb5 {[%clk 0:02:58]}  e6 {[%clk 0:02:55]} 4. O-O {[%clk 0:02:57]}  Nge7 {[%clk 0:02:55]} 5. Re1 {[%clk 0:02:57]}  Nd4 {[%clk 0:02:49]} 6. Bf1 {[%clk 0:02:54]}  Nxf3+ {[%clk 0:02:46]} 7. Qxf3 {[%clk 0:02:54]}  Nc6 {[%clk 0:02:46]} 8. c3 {[%clk 0:02:43]}  Be7 {[%clk 0:02:41]} 9. d3 {[%clk 0:02:38]}  O-O {[%clk 0:02:40]} 10. Nd2 {[%clk 0:02:34]}  d6 {[%clk 0:02:33]} 11. a3 {[%clk 0:02:32]}  Qc7 {[%clk 0:02:17]} 12. Rb1 {[%clk 0:02:30]}  b6 {[%clk 0:02:15]} 13. b4 {[%clk 0:02:29]}  Bb7 {[%clk 0:02:15]} 14. Bb2 {[%clk 0:02:29]}  a6 {[%clk 0:02:10]} 15. d4 {[%clk 0:02:14]}  d5 {[%clk 0:01:58]} 16. exd5 {[%clk 0:01:44]}  exd5 {[%clk 0:01:58]} 17. Bd3 {[%clk 0:01:20]}  g6 {[%clk 0:01:39]} 18. Nf1 {[%clk 0:01:01]}  Rad8 {[%clk 0:01:32]} 19. Ne3 {[%clk 0:00:59]}  c4 {[%clk 0:01:27]} 20. Bc2 {[%clk 0:00:58]}  Qd7 {[%clk 0:01:25]} 21. Ng4 {[%clk 0:00:15]}  f5 {[%clk 0:01:20]} 22. Ne5 {[%clk 0:00:13]}  Nxe5 {[%clk 0:01:20]} 23. Rxe5 {[%clk 0:00:14]}  Bf6 {[%clk 0:01:17]} 24. Re2 {[%clk 0:00:14]}  Bc6 {[%clk 0:01:15]} 25. Rbe1 {[%clk 0:00:14]}  Rfe8 {[%clk 0:01:14]} 26. g3 {[%clk 0:00:12]}  Re4 {[%clk 0:01:10]} 27. Bc1 {[%clk 0:00:11]}  Rde8 {[%clk 0:01:07]} 28. h4 {[%clk 0:00:10]}  Kg7 {[%clk 0:01:05]} 29. Bxe4 {[%clk 0:00:07]}  dxe4 {[%clk 0:01:05]} 30. Qf4 {[%clk 0:00:08]}  Qd5 {[%clk 0:01:01]} 31. Be3 {[%clk 0:00:08]}  Kg8 {[%clk 0:00:59]} 32. Qc7 {[%clk 0:00:07]}  Bd8 {[%clk 0:00:44]} 33. Qa7 {[%clk 0:00:06]}  Re7 {[%clk 0:00:12]} 34. Qb8 {[%clk 0:00:06]}  Kf7 {[%clk 0:00:09]} 35. Qf4 {[%clk 0:00:06]}  Bc7 {[%clk 0:00:09]} 36. Qh6 {[%clk 0:00:06]}  Kg8 {[%clk 0:00:09]} 37. h5 {[%clk 0:00:06]}  Rg7 {[%clk 0:00:08]} 38. hxg6 {[%clk 0:00:06]}  hxg6 {[%clk 0:00:08]} 39. Qg5 {[%clk 0:00:05]}  Bd8 {[%clk 0:00:08]} 40. Qf4 {[%clk 0:00:04]}  g5 {[%clk 0:00:06]} 41. Qe5 {[%clk 0:00:05]}  Qxe5 {[%clk 0:00:06]} 42. dxe5 {[%clk 0:00:05]}  f4 {[%clk 0:00:06]} 43. Bd4 {[%clk 0:00:05]}  f3 {[%clk 0:00:06]} 44. Rxe4 {[%clk 0:00:06]}  Bxe4 {[%clk 0:00:07]} 45. Rxe4 {[%clk 0:00:06]}  Rf7 {[%clk 0:00:07]} 46. g4 {[%clk 0:00:06]}  Be7 {[%clk 0:00:07]} 47. Kh2 {[%clk 0:00:07]}  Rh7+ {[%clk 0:00:03]} 48. Kg3 {[%clk 0:00:07]}  Rh1 {[%clk 0:00:04]} 49. Re3 {[%clk 0:00:07]}  Ra1 {[%clk 0:00:03]} 50. Rxf3 {[%clk 0:00:08]}  Rxa3 {[%clk 0:00:03]} 51. e6 {[%clk 0:00:08]}  a5 {[%clk 0:00:01]} 52. Rf7 {[%clk 0:00:08]}  Bd6+ {[%clk 0:00:02]} 53. Kf3 {[%clk 0:00:07]}  axb4 {[%clk 0:00:03]} 54. Rd7 {[%clk 0:00:06]}  Bf8 {[%clk 0:00:02]} 55. e7 {[%clk 0:00:06]}  Bxe7 {[%clk 0:00:01]} 56. Rxe7 {[%clk 0:00:07]}  bxc3 {[%clk 0:00:01]} 57. Ke4 {[%clk 0:00:08]}  c2 {[%clk 0:00:01]} 58. Be3 {[%clk 0:00:08]}  Rc3 {[%clk 0:00:02]} 59. Re8+ {[%clk 0:00:08]}  Kf7 {[%clk 0:00:02]} 60. Bc1 {[%clk 0:00:08]}  Rd3 {[%clk 0:00:02]} 61. Re5 {[%clk 0:00:08]}  Rd1 {[%clk 0:00:02]} 62. Bxg5 {[%clk 0:00:08]}  c1=Q {[%clk 0:00:03]} 63. Bxc1 {[%clk 0:00:08]}  Rxc1 {[%clk 0:00:04]} 64. Rb5 {[%clk 0:00:08]}  c3 {[%clk 0:00:04]} 65. Kd3 {[%clk 0:00:09]}  Rf1 {[%clk 0:00:03]} 66. Rxb6 {[%clk 0:00:09]}  Rxf2 {[%clk 0:00:04]} 67. Rc6 {[%clk 0:00:09]}  Rf3+ {[%clk 0:00:04]} 68. Kc2 {[%clk 0:00:09]}  Rg3 {[%clk 0:00:05]} 69. Rxc3 {[%clk 0:00:10]}  Rxg4 {[%clk 0:00:05]} 70. Kb3 {[%clk 0:00:08]}  Kg6 {[%clk 0:00:06]} 71. Rc4 {[%clk 0:00:08]}  Rxc4 {[%clk 0:00:05]} 72. Kxc4 {[%clk 0:00:09]} 1/2-1/2


[Site "https://www.chess.com"]

[Event "Titled Tuesday Blitz February 07 Late 2023"]
[White "Prem, Pranav"]
[Black "Dourerassou, Jonathan"]
[WhiteFideId "30901057"]
[BlackFideId "628050"]
[WhiteElo "2061"]
[BlackElo "2414"]
[Result "1/2-1/2"]
[Round "06"]
[TimeControl "180+2"]
[Date "2023.02.07"]
[WhiteClock "0:00:05"]
[BlackClock "0:00:17"]

1. d4 {[%clk 0:03:00]}  Nf6 {[%clk 0:02:58]} 2. c4 {[%clk 0:03:00]}  g6 {[%clk 0:02:57]} 3. Nc3 {[%clk 0:03:00]}  d5 {[%clk 0:02:57]} 4. cxd5 {[%clk 0:03:00]}  Nxd5 {[%clk 0:02:58]} 5. e4 {[%clk 0:03:01]}  Nxc3 {[%clk 0:02:58]} 6. bxc3 {[%clk 0:03:01]}  Bg7 {[%clk 0:02:59]} 7. Bc4 {[%clk 0:03:02]}  O-O {[%clk 0:02:58]} 8. Ne2 {[%clk 0:03:03]}  c5 {[%clk 0:02:56]} 9. O-O {[%clk 0:03:04]}  Nc6 {[%clk 0:02:55]} 10. Be3 {[%clk 0:03:04]}  b6 {[%clk 0:02:55]} 11. Qd2 {[%clk 0:03:03]}  Bb7 {[%clk 0:02:56]} 12. Rfd1 {[%clk 0:03:02]}  Na5 {[%clk 0:02:56]} 13. Bd3 {[%clk 0:03:02]}  Rc8 {[%clk 0:02:54]} 14. Bh6 {[%clk 0:02:54]}  cxd4 {[%clk 0:02:54]} 15. Bxg7 {[%clk 0:02:54]}  Kxg7 {[%clk 0:02:48]} 16. cxd4 {[%clk 0:02:54]}  Nc4 {[%clk 0:02:46]} 17. Qb4 {[%clk 0:02:27]}  Qd6 {[%clk 0:02:39]} 18. Qb3 {[%clk 0:02:13]}  Na5 {[%clk 0:02:34]} 19. Qb2 {[%clk 0:02:13]}  Rc7 {[%clk 0:01:52]} 20. Rac1 {[%clk 0:01:42]}  Rfc8 {[%clk 0:01:50]} 21. Rxc7 {[%clk 0:01:41]}  Rxc7 {[%clk 0:01:51]} 22. d5+ {[%clk 0:01:07]}  f6 {[%clk 0:01:51]} 23. Nd4 {[%clk 0:01:05]}  Rc8 {[%clk 0:01:29]} 24. Rc1 {[%clk 0:00:50]}  Kf7 {[%clk 0:01:23]} 25. Ne6 {[%clk 0:00:37]}  Qe5 {[%clk 0:01:10]} 26. Qd2 {[%clk 0:00:24]}  g5 {[%clk 0:00:48]} 27. Rxc8 {[%clk 0:00:20]}  Bxc8 {[%clk 0:00:49]} 28. Qd1 {[%clk 0:00:17]}  Bxe6 {[%clk 0:00:45]} 29. Qh5+ {[%clk 0:00:15]}  Kg7 {[%clk 0:00:44]} 30. dxe6 {[%clk 0:00:14]}  Qa1+ {[%clk 0:00:43]} 31. Bf1 {[%clk 0:00:14]}  Nc6 {[%clk 0:00:31]} 32. Qf7+ {[%clk 0:00:13]}  Kh6 {[%clk 0:00:31]} 33. g4 {[%clk 0:00:08]}  Ne5 {[%clk 0:00:28]} 34. Qxe7 {[%clk 0:00:08]}  Nf3+ {[%clk 0:00:26]} 35. Kg2 {[%clk 0:00:08]}  Nh4+ {[%clk 0:00:25]} 36. Kg1 {[%clk 0:00:05]}  Nf3+ {[%clk 0:00:21]} 37. Kg2 {[%clk 0:00:05]}  Ne1+ {[%clk 0:00:17]} 38. Kg1 {[%clk 0:00:05]}  Qe5 {[%clk 0:00:15]} 39. Qf8+ {[%clk 0:00:04]}  Kg6 {[%clk 0:00:15]} 40. Qg8+ {[%clk 0:00:04]}  Kh6 {[%clk 0:00:16]} 41. Qf8+ {[%clk 0:00:04]}  Kg6 {[%clk 0:00:16]} 42. Qg8+ {[%clk 0:00:05]}  Kh6 {[%clk 0:00:17]} 43. Qf8+ {[%clk 0:00:05]} 1/2-1/2


[Site "https://www.chess.com"]

[Event "Titled Tuesday Blitz February 07 Late 2023"]
[White "Schekachikhin, Maksim"]
[Black "Cardoso Cardoso, Jose Gabriel"]
[WhiteFideId "24177830"]
[BlackFideId "4430492"]
[WhiteElo "2371"]
[BlackElo "2492"]
[Result "1-0"]
[Round "06"]
[TimeControl "180+2"]
[Date "2023.02.07"]
[WhiteClock "0:00:05"]
[BlackClock "0:00:01"]

1. b3 {[%clk 0:03:00]}  a5 {[%clk 0:02:59]} 2. Nc3 {[%clk 0:02:59]}  g6 {[%clk 0:02:59]} 3. Bb2 {[%clk 0:02:58]}  Bg7 {[%clk 0:03:00]} 4. Nf3 {[%clk 0:02:54]}  e5 {[%clk 0:02:54]} 5. e4 {[%clk 0:02:50]}  Nc6 {[%clk 0:02:54]} 6. Bc4 {[%clk 0:02:47]}  d6 {[%clk 0:02:51]} 7. O-O {[%clk 0:02:46]}  Nge7 {[%clk 0:02:49]} 8. h3 {[%clk 0:02:45]}  O-O {[%clk 0:02:49]} 9. Nd5 {[%clk 0:02:44]}  a4 {[%clk 0:02:48]} 10. d4 {[%clk 0:02:42]}  a3 {[%clk 0:02:43]} 11. Bc3 {[%clk 0:02:42]}  exd4 {[%clk 0:02:31]} 12. Nxd4 {[%clk 0:02:40]}  Ne5 {[%clk 0:02:29]} 13. Nxe7+ {[%clk 0:02:31]}  Qxe7 {[%clk 0:02:28]} 14. Be2 {[%clk 0:02:32]}  Nd7 {[%clk 0:01:19]} 15. Nb5 {[%clk 0:02:11]}  Nc5 {[%clk 0:01:10]} 16. Bxg7 {[%clk 0:02:09]}  Kxg7 {[%clk 0:01:11]} 17. Qd4+ {[%clk 0:02:08]}  f6 {[%clk 0:01:08]} 18. Rfe1 {[%clk 0:01:55]}  Rd8 {[%clk 0:01:06]} 19. Bf1 {[%clk 0:01:46]}  Be6 {[%clk 0:01:02]} 20. Rad1 {[%clk 0:01:44]}  Bf7 {[%clk 0:01:02]} 21. Bc4 {[%clk 0:01:37]}  Be8 {[%clk 0:00:57]} 22. Nc3 {[%clk 0:01:34]}  c6 {[%clk 0:00:57]} 23. b4 {[%clk 0:00:56]}  Ne6 {[%clk 0:00:56]} 24. Qe3 {[%clk 0:00:43]}  Bf7 {[%clk 0:00:54]} 25. b5 {[%clk 0:00:40]}  Nc5 {[%clk 0:00:54]} 26. Bxf7 {[%clk 0:00:38]}  Qxf7 {[%clk 0:00:55]} 27. Rb1 {[%clk 0:00:34]}  Rac8 {[%clk 0:00:49]} 28. Qd4 {[%clk 0:00:33]}  Rc7 {[%clk 0:00:47]} 29. bxc6 {[%clk 0:00:32]}  bxc6 {[%clk 0:00:48]} 30. Qb4 {[%clk 0:00:31]}  Ra8 {[%clk 0:00:46]} 31. Red1 {[%clk 0:00:28]}  Qe7 {[%clk 0:00:44]} 32. Qd4 {[%clk 0:00:26]}  Rd8 {[%clk 0:00:37]} 33. Rb6 {[%clk 0:00:24]}  Qe6 {[%clk 0:00:31]} 34. Qb4 {[%clk 0:00:21]}  Qe5 {[%clk 0:00:29]} 35. Qxa3 {[%clk 0:00:19]}  Nxe4 {[%clk 0:00:25]} 36. Nxe4 {[%clk 0:00:19]}  Qxe4 {[%clk 0:00:26]} 37. Rb3 {[%clk 0:00:11]}  c5 {[%clk 0:00:20]} 38. Qa5 {[%clk 0:00:09]}  Rdd7 {[%clk 0:00:18]} 39. Re3 {[%clk 0:00:08]}  Qxc2 {[%clk 0:00:18]} 40. Rxd6 {[%clk 0:00:08]}  Qb1+ {[%clk 0:00:15]} 41. Kh2 {[%clk 0:00:07]}  Qb8 {[%clk 0:00:15]} 42. Rxd7+ {[%clk 0:00:07]}  Rxd7+ {[%clk 0:00:16]} 43. g3 {[%clk 0:00:08]}  c4 {[%clk 0:00:16]} 44. Qc3 {[%clk 0:00:06]}  Qb7 {[%clk 0:00:07]} 45. Re6 {[%clk 0:00:05]}  Rf7 {[%clk 0:00:07]} 46. Qxc4 {[%clk 0:00:05]}  Qf3 {[%clk 0:00:06]} 47. Qe2 {[%clk 0:00:05]}  Qa3 {[%clk 0:00:06]} 48. Re3 {[%clk 0:00:05]}  Qb4 {[%clk 0:00:04]} 49. h4 {[%clk 0:00:05]}  h5 {[%clk 0:00:04]} 50. Kg2 {[%clk 0:00:05]}  Rd7 {[%clk 0:00:04]} 51. Qf3 {[%clk 0:00:04]}  Qa4 {[%clk 0:00:03]} 52. a3 {[%clk 0:00:05]}  Qa5 {[%clk 0:00:02]} 53. Re6 {[%clk 0:00:04]}  Rf7 {[%clk 0:00:03]} 54. Qe3 {[%clk 0:00:04]}  Qd5+ {[%clk 0:00:03]} 55. Kh2 {[%clk 0:00:04]}  Qa5 {[%clk 0:00:03]} 56. Re4 {[%clk 0:00:03]}  Qf5 {[%clk 0:00:03]} 57. Re7 {[%clk 0:00:03]}  Kf8 {[%clk 0:00:02]} 58. Rxf7+ {[%clk 0:00:03]}  Kxf7 {[%clk 0:00:02]} 59. Kg2 {[%clk 0:00:03]}  Qd5+ {[%clk 0:00:03]} 60. Qf3 {[%clk 0:00:04]}  Qa5 {[%clk 0:00:03]} 61. Qb3+ {[%clk 0:00:04]}  Ke7 {[%clk 0:00:03]} 62. a4 {[%clk 0:00:05]}  Qa8+ {[%clk 0:00:03]} 63. Kh2 {[%clk 0:00:04]}  Qa7 {[%clk 0:00:02]} 64. Qa3+ {[%clk 0:00:04]}  Kd7 {[%clk 0:00:02]} 65. Qd3+ {[%clk 0:00:03]}  Kc7 {[%clk 0:00:02]} 66. Qc2+ {[%clk 0:00:03]}  Kd6 {[%clk 0:00:02]} 67. Kg2 {[%clk 0:00:03]}  Qa8+ {[%clk 0:00:02]} 68. Kg1 {[%clk 0:00:03]}  Qa5 {[%clk 0:00:01]} 69. Qxg6 {[%clk 0:00:03]}  Qxa4 {[%clk 0:00:01]} 70. Qxf6+ {[%clk 0:00:03]}  Kd7 {[%clk 0:00:02]} 71. Qf5+ {[%clk 0:00:03]}  Ke7 {[%clk 0:00:02]} 72. Qxh5 {[%clk 0:00:04]}  Qd1+ {[%clk 0:00:02]} 73. Qxd1 {[%clk 0:00:03]}  Ke6 {[%clk 0:00:02]} 74. Qe2+ {[%clk 0:00:03]}  Kf5 {[%clk 0:00:03]} 75. Qe3 {[%clk 0:00:04]}  Kf6 {[%clk 0:00:01]} 76. Qg5+ {[%clk 0:00:04]}  Kf7 {[%clk 0:00:01]} 77. h5 {[%clk 0:00:05]} 1-0


[Site "https://www.chess.com"]